[Event "Titled Tuesday Blitz October 31 Early 2023"]
[White "Bobomurodova, Maftuna"]
[Black "brm72"]
[WhiteFideId "14207400"]
[WhiteElo "2396"]
[BlackElo "2577"]
[Result "1-0"]
[Round "11"]
[TimeControl "180+1"]
[Date "2023.10.31"]
[WhiteClock "0:00:14"]
[BlackClock "0:00:00"]
[Board "66"]

1. e4 {[%clk 0:03:00]}  c5 {[%clk 0:02:59]} 2. Nf3 {[%clk 0:03:00]}  d6 {[%clk 0:03:00]} 3. Bb5+ {[%clk 0:02:59]}  Nd7 {[%clk 0:03:00]} 4. O-O {[%clk 0:02:57]}  a6 {[%clk 0:02:54]} 5. Bd3 {[%clk 0:02:57]}  Ngf6 {[%clk 0:02:51]} 6. c3 {[%clk 0:02:57]}  b5 {[%clk 0:02:51]} 7. Bc2 {[%clk 0:02:57]}  Bb7 {[%clk 0:02:49]} 8. Re1 {[%clk 0:02:56]}  c4 {[%clk 0:02:47]} 9. d4 {[%clk 0:02:53]}  cxd3 {[%clk 0:02:46]} 10. Bxd3 {[%clk 0:02:53]}  g6 {[%clk 0:02:43]} 11. Bc2 {[%clk 0:02:53]}  Bg7 {[%clk 0:02:43]} 12. Nbd2 {[%clk 0:02:52]}  O-O {[%clk 0:02:43]} 13. Nf1 {[%clk 0:02:45]}  Rc8 {[%clk 0:02:40]} 14. Ng3 {[%clk 0:02:44]}  Qc7 {[%clk 0:02:33]} 15. Bd2 {[%clk 0:02:28]}  Nb6 {[%clk 0:02:18]} 16. b3 {[%clk 0:02:13]}  Nfd7 {[%clk 0:02:12]} 17. Rc1 {[%clk 0:02:06]}  Bxc3 {[%clk 0:01:49]} 18. Bb1 {[%clk 0:02:03]}  b4 {[%clk 0:01:48]} 19. h4 {[%clk 0:02:00]}  Ne5 {[%clk 0:01:44]} 20. Nxe5 {[%clk 0:01:53]}  dxe5 {[%clk 0:01:44]} 21. h5 {[%clk 0:01:51]}  Rfd8 {[%clk 0:01:42]} 22. Nf1 {[%clk 0:01:47]}  a5 {[%clk 0:01:32]} 23. Qe2 {[%clk 0:01:45]}  Qd6 {[%clk 0:01:20]} 24. Red1 {[%clk 0:01:31]}  Bxd2 {[%clk 0:01:15]} 25. Rxc8 {[%clk 0:01:29]}  Rxc8 {[%clk 0:01:13]} 26. Rxd2 {[%clk 0:01:25]}  Qc6 {[%clk 0:01:10]} 27. hxg6 {[%clk 0:01:21]}  hxg6 {[%clk 0:01:10]} 28. Ne3 {[%clk 0:01:18]}  Qe6 {[%clk 0:01:01]} 29. Bd3 {[%clk 0:01:12]}  Rc1+ {[%clk 0:00:57]} 30. Kh2 {[%clk 0:01:12]}  Qf6 {[%clk 0:00:55]} 31. g3 {[%clk 0:01:09]}  Qg5 {[%clk 0:00:45]} 32. Rd1 {[%clk 0:00:49]}  Rc3 {[%clk 0:00:32]} 33. Bb1 {[%clk 0:00:43]}  Kg7 {[%clk 0:00:30]} 34. Kg2 {[%clk 0:00:37]}  f5 {[%clk 0:00:24]} 35. Nd5 {[%clk 0:00:35]}  Nxd5 {[%clk 0:00:20]} 36. exd5 {[%clk 0:00:35]}  e4 {[%clk 0:00:21]} 37. Qb5 {[%clk 0:00:23]}  Rc7 {[%clk 0:00:13]} 38. Qe2 {[%clk 0:00:18]}  Rd7 {[%clk 0:00:12]} 39. Qb2+ {[%clk 0:00:18]}  Kh7 {[%clk 0:00:11]} 40. Qe5 {[%clk 0:00:16]}  Qf6 {[%clk 0:00:08]} 41. Rh1+ {[%clk 0:00:16]}  Kg7 {[%clk 0:00:08]} 42. Qb8 {[%clk 0:00:15]}  e6 {[%clk 0:00:03]} 43. Qh8+ {[%clk 0:00:14]}  Kf7 {[%clk 0:00:00]} 44. Rh7+ {[%clk 0:00:14]} 1-0


[Site "https://www.chess.com"]

[Event "Titled Tuesday Blitz October 31 Early 2023"]
[White "Andreev, Konstantin"]
[Black "chessculator16"]
[WhiteFideId "24239305"]
[WhiteElo "2558"]
[BlackElo "2360"]
[Result "0-1"]
[Round "11"]
[TimeControl "180+1"]
[Date "2023.10.31"]
[WhiteClock "0:01:55"]
[BlackClock "0:02:17"]
[Board "69"]

1. e4 {[%clk 0:03:00]}  c6 {[%clk 0:02:58]} 2. d4 {[%clk 0:03:00]}  d5 {[%clk 0:02:59]} 3. e5 {[%clk 0:03:00]}  Bf5 {[%clk 0:02:57]} 4. Nf3 {[%clk 0:03:01]}  e6 {[%clk 0:02:56]} 5. Be2 {[%clk 0:03:01]}  c5 {[%clk 0:02:55]} 6. Be3 {[%clk 0:03:00]}  Qb6 {[%clk 0:02:54]} 7. Nc3 {[%clk 0:02:57]}  Nc6 {[%clk 0:02:53]} 8. Nb5 {[%clk 0:02:51]}  c4 {[%clk 0:02:51]} 9. Nc3 {[%clk 0:02:48]}  Qxb2 {[%clk 0:02:49]} 10. Qb1 {[%clk 0:02:48]}  Qxc2 {[%clk 0:02:46]} 11. Qxb7 {[%clk 0:02:19]}  Qxc3+ {[%clk 0:02:46]} 12. Bd2 {[%clk 0:02:20]}  Qxa1+ {[%clk 0:02:43]} 13. Bd1 {[%clk 0:02:20]}  Nge7 {[%clk 0:02:37]} 14. Qxa8+ {[%clk 0:02:19]}  Nd8 {[%clk 0:02:37]} 15. Ke2 {[%clk 0:02:17]}  Bd3+ {[%clk 0:02:34]} 16. Ke3 {[%clk 0:02:17]}  Qxa2 {[%clk 0:02:33]} 17. Qb8 {[%clk 0:02:05]}  g6 {[%clk 0:02:28]} 18. Bb4 {[%clk 0:01:57]}  Bh6+ {[%clk 0:02:24]} 19. Ng5 {[%clk 0:01:55]}  Bxg5+ {[%clk 0:02:24]} 20. f4 {[%clk 0:01:55]}  Nf5+ {[%clk 0:02:22]} 21. Kf3 {[%clk 0:01:55]}  Be4+ {[%clk 0:02:19]} 22. Kg4 {[%clk 0:01:55]}  Qxg2# {[%clk 0:02:17]} 0-1


[Site "https://www.chess.com"]

[Event "Titled Tuesday Blitz October 31 Early 2023"]
[White "LeoLV10"]
[Black "Matthes, Aaron"]
[BlackFideId "16227310"]
[WhiteElo "2542"]
[BlackElo "2347"]
[Result "1-0"]
[Round "11"]
[TimeControl "180+1"]
[Date "2023.10.31"]
[WhiteClock "0:00:57"]
[BlackClock "0:00:08"]
[Board "71"]

1. e4 {[%clk 0:02:40]}  c6 {[%clk 0:02:58]} 2. d4 {[%clk 0:02:36]}  d5 {[%clk 0:02:59]} 3. e5 {[%clk 0:02:35]}  c5 {[%clk 0:02:58]} 4. dxc5 {[%clk 0:02:30]}  e6 {[%clk 0:02:56]} 5. a3 {[%clk 0:02:26]}  Bxc5 {[%clk 0:02:54]} 6. b4 {[%clk 0:02:26]}  Be7 {[%clk 0:02:54]} 7. Qg4 {[%clk 0:02:25]}  Kf8 {[%clk 0:02:48]} 8. Bd3 {[%clk 0:02:24]}  Nd7 {[%clk 0:02:44]} 9. Nf3 {[%clk 0:02:24]}  f5 {[%clk 0:02:41]} 10. Qd4 {[%clk 0:02:20]}  Qb6 {[%clk 0:02:34]} 11. Qb2 {[%clk 0:02:11]}  Kf7 {[%clk 0:02:09]} 12. O-O {[%clk 0:02:09]}  Nh6 {[%clk 0:02:06]} 13. Be3 {[%clk 0:02:08]}  Qc7 {[%clk 0:02:04]} 14. Nbd2 {[%clk 0:02:05]}  Ng4 {[%clk 0:02:03]} 15. Bd4 {[%clk 0:02:06]}  h5 {[%clk 0:01:50]} 16. h3 {[%clk 0:02:05]}  Nh6 {[%clk 0:01:50]} 17. c4 {[%clk 0:02:05]}  dxc4 {[%clk 0:01:49]} 18. Nxc4 {[%clk 0:02:05]}  b5 {[%clk 0:01:38]} 19. Ncd2 {[%clk 0:01:55]}  a6 {[%clk 0:01:34]} 20. Rac1 {[%clk 0:01:55]}  Qb8 {[%clk 0:01:28]} 21. Bb1 {[%clk 0:01:46]}  Bb7 {[%clk 0:01:25]} 22. Ba2 {[%clk 0:01:45]}  Re8 {[%clk 0:01:22]} 23. Be3 {[%clk 0:01:42]}  g5 {[%clk 0:01:12]} 24. Rfd1 {[%clk 0:01:33]}  f4 {[%clk 0:01:10]} 25. Qb1 {[%clk 0:01:13]}  Nf8 {[%clk 0:00:55]} 26. Bc5 {[%clk 0:01:08]}  g4 {[%clk 0:00:50]} 27. Nd4 {[%clk 0:01:07]}  Qxe5 {[%clk 0:00:44]} 28. Re1 {[%clk 0:01:05]}  Qg5 {[%clk 0:00:30]} 29. Nxe6 {[%clk 0:01:03]}  Nxe6 {[%clk 0:00:30]} 30. Rxe6 {[%clk 0:01:00]}  Kg7 {[%clk 0:00:26]} 31. Bd4+ {[%clk 0:00:59]}  Kf8 {[%clk 0:00:20]} 32. Rg6 {[%clk 0:00:59]}  Rad8 {[%clk 0:00:08]} 33. Bg7# {[%clk 0:00:57]} 1-0


[Site "https://www.chess.com"]

[Event "Titled Tuesday Blitz October 31 Early 2023"]
[White "Tharushi, T H D Niklesha"]
[Black "Tologon tegin, Semetei"]
[WhiteFideId "9918264"]
[BlackFideId "13800574"]
[WhiteElo "2283"]
[BlackElo "2518"]
[Result "0-1"]
[Round "11"]
[TimeControl "180+1"]
[Date "2023.10.31"]
[WhiteClock "0:02:09"]
[BlackClock "0:02:37"]
[Board "72"]

1. e4 {[%clk 0:03:00]}  Nc6 {[%clk 0:02:58]} 2. d4 {[%clk 0:03:00]}  d5 {[%clk 0:02:58]} 3. e5 {[%clk 0:02:58]}  Bf5 {[%clk 0:02:57]} 4. c3 {[%clk 0:02:56]}  e6 {[%clk 0:02:57]} 5. Bd3 {[%clk 0:02:57]}  Nge7 {[%clk 0:02:55]} 6. Nf3 {[%clk 0:02:56]}  Bxd3 {[%clk 0:02:52]} 7. Qxd3 {[%clk 0:02:56]}  Nf5 {[%clk 0:02:53]} 8. g4 {[%clk 0:02:52]}  Nh4 {[%clk 0:02:52]} 9. h3 {[%clk 0:02:45]}  Be7 {[%clk 0:02:50]} 10. Bf4 {[%clk 0:02:38]}  a6 {[%clk 0:02:50]} 11. Nbd2 {[%clk 0:02:38]}  Ng2+ {[%clk 0:02:48]} 12. Kd1 {[%clk 0:02:33]}  Nxf4 {[%clk 0:02:49]} 13. Qe3 {[%clk 0:02:34]}  g5 {[%clk 0:02:44]} 14. h4 {[%clk 0:02:32]}  Ng2 {[%clk 0:02:44]} 15. Qe2 {[%clk 0:02:29]}  Nxh4 {[%clk 0:02:43]} 16. Nxh4 {[%clk 0:02:28]}  gxh4 {[%clk 0:02:44]} 17. Nf3 {[%clk 0:02:28]}  h6 {[%clk 0:02:44]} 18. Kc2 {[%clk 0:02:26]}  Bg5 {[%clk 0:02:42]} 19. Rh2 {[%clk 0:02:26]}  Ne7 {[%clk 0:02:42]} 20. Rah1 {[%clk 0:02:25]}  Ng6 {[%clk 0:02:41]} 21. Qd1 {[%clk 0:02:17]}  Qd7 {[%clk 0:02:41]} 22. Ng1 {[%clk 0:02:09]}  Qa4+ {[%clk 0:02:37]} 0-1


[Site "https://www.chess.com"]

[Event "Titled Tuesday Blitz October 31 Early 2023"]
[White "Phillips, Rene"]
[Black "Tikhonov, Viacheslav"]
[WhiteFideId "2056275"]
[BlackFideId "44196407"]
[WhiteElo "2069"]
[BlackElo "2505"]
[Result "0-1"]
[Round "11"]
[TimeControl "180+1"]
[Date "2023.10.31"]
[WhiteClock "0:00:39"]
[BlackClock "0:01:00"]
[Board "74"]

1. d4 {[%clk 0:03:00]}  Nf6 {[%clk 0:02:55]} 2. Bf4 {[%clk 0:03:01]}  g6 {[%clk 0:02:56]} 3. e3 {[%clk 0:03:01]}  Bg7 {[%clk 0:02:56]} 4. Nf3 {[%clk 0:03:01]}  c5 {[%clk 0:02:56]} 5. c3 {[%clk 0:03:01]}  b6 {[%clk 0:02:57]} 6. Nbd2 {[%clk 0:03:00]}  Bb7 {[%clk 0:02:58]} 7. Bd3 {[%clk 0:03:00]}  O-O {[%clk 0:02:57]} 8. Qe2 {[%clk 0:02:59]}  d5 {[%clk 0:02:58]} 9. Ne5 {[%clk 0:02:58]}  Nfd7 {[%clk 0:02:55]} 10. h4 {[%clk 0:02:55]}  Nxe5 {[%clk 0:02:52]} 11. Bxe5 {[%clk 0:02:54]}  f6 {[%clk 0:02:48]} 12. Bg3 {[%clk 0:02:53]}  e5 {[%clk 0:02:49]} 13. h5 {[%clk 0:02:47]}  e4 {[%clk 0:02:48]} 14. Bc2 {[%clk 0:02:46]}  f5 {[%clk 0:02:39]} 15. hxg6 {[%clk 0:02:46]}  hxg6 {[%clk 0:02:40]} 16. Be5 {[%clk 0:02:40]}  Bxe5 {[%clk 0:02:28]} 17. dxe5 {[%clk 0:02:40]}  Qe7 {[%clk 0:02:17]} 18. O-O-O {[%clk 0:02:28]}  Qxe5 {[%clk 0:02:09]} 19. Rh6 {[%clk 0:02:28]}  Kg7 {[%clk 0:01:28]} 20. Rdh1 {[%clk 0:02:27]}  Ba6 {[%clk 0:01:29]} 21. Rxg6+ {[%clk 0:02:23]}  Kxg6 {[%clk 0:01:29]} 22. Qh5+ {[%clk 0:02:23]}  Kf6 {[%clk 0:01:29]} 23. Qh6+ {[%clk 0:02:13]}  Ke7 {[%clk 0:01:29]} 24. Qg5+ {[%clk 0:02:05]}  Qf6 {[%clk 0:01:28]} 25. Qf4 {[%clk 0:01:50]}  Nd7 {[%clk 0:01:27]} 26. Ba4 {[%clk 0:01:41]}  b5 {[%clk 0:01:13]} 27. Bd1 {[%clk 0:01:31]}  Rh8 {[%clk 0:01:11]} 28. Rg1 {[%clk 0:01:31]}  Rag8 {[%clk 0:01:06]} 29. Qc7 {[%clk 0:01:30]}  Qb6 {[%clk 0:01:04]} 30. Qf4 {[%clk 0:01:27]}  Qd6 {[%clk 0:01:03]} 31. Qxf5 {[%clk 0:01:23]}  Qe5 {[%clk 0:01:03]} 32. Qxe5+ {[%clk 0:00:48]}  Nxe5 {[%clk 0:01:04]} 33. Bc2 {[%clk 0:00:39]}  Rh2 {[%clk 0:01:00]} 0-1


[Site "https://www.chess.com"]

[Event "Titled Tuesday Blitz October 31 Early 2023"]
[White "Hoffmann, Asa"]
[Black "Gurevich, Dmitry"]
[WhiteFideId "2001470"]
[BlackFideId "2000407"]
[WhiteElo "2402"]
[BlackElo "2532"]
[Result "0-1"]
[Round "11"]
[TimeControl "180+1"]
[Date "2023.10.31"]
[WhiteClock "0:00:16"]
[BlackClock "0:00:28"]
[Board "76"]

1. d4 {[%clk 0:02:55]}  d5 {[%clk 0:03:00]} 2. Bg5 {[%clk 0:02:54]}  f6 {[%clk 0:02:59]} 3. Bh4 {[%clk 0:02:47]}  Nh6 {[%clk 0:02:59]} 4. e3 {[%clk 0:02:44]}  Nf5 {[%clk 0:02:56]} 5. Bg3 {[%clk 0:02:42]}  h5 {[%clk 0:02:56]} 6. h4 {[%clk 0:02:32]}  Nxg3 {[%clk 0:02:55]} 7. fxg3 {[%clk 0:02:32]}  Bg4 {[%clk 0:02:49]} 8. Qd2 {[%clk 0:02:23]}  e6 {[%clk 0:02:47]} 9. Bd3 {[%clk 0:02:23]}  Bd6 {[%clk 0:02:46]} 10. Kf2 {[%clk 0:02:23]}  c5 {[%clk 0:02:44]} 11. c3 {[%clk 0:02:22]}  Qc7 {[%clk 0:02:43]} 12. Bg6+ {[%clk 0:02:15]}  Ke7 {[%clk 0:02:41]} 13. Ne2 {[%clk 0:02:11]}  Bxe2 {[%clk 0:02:36]} 14. Qxe2 {[%clk 0:02:10]}  Bxg3+ {[%clk 0:02:35]} 15. Kg1 {[%clk 0:02:10]}  f5 {[%clk 0:02:24]} 16. Bxh5 {[%clk 0:02:06]}  Nd7 {[%clk 0:02:19]} 17. Nd2 {[%clk 0:02:04]}  Nf6 {[%clk 0:02:19]} 18. Bf3 {[%clk 0:02:03]}  Bxh4 {[%clk 0:02:13]} 19. Rh3 {[%clk 0:01:56]}  Bg5 {[%clk 0:02:12]} 20. Nf1 {[%clk 0:01:52]}  Rxh3 {[%clk 0:02:09]} 21. gxh3 {[%clk 0:01:51]}  Rh8 {[%clk 0:02:06]} 22. Kg2 {[%clk 0:01:49]}  Rh4 {[%clk 0:01:59]} 23. Ng3 {[%clk 0:01:44]}  g6 {[%clk 0:01:55]} 24. Rh1 {[%clk 0:01:43]}  Ne4 {[%clk 0:01:51]} 25. Bxe4 {[%clk 0:01:39]}  dxe4 {[%clk 0:01:50]} 26. Qc4 {[%clk 0:01:29]}  Bxe3 {[%clk 0:01:43]} 27. d5 {[%clk 0:01:17]}  Bf4 {[%clk 0:01:24]} 28. Ne2 {[%clk 0:01:12]}  Be5 {[%clk 0:01:15]} 29. Rd1 {[%clk 0:01:05]}  Rh8 {[%clk 0:01:08]} 30. dxe6 {[%clk 0:01:02]}  Rd8 {[%clk 0:01:06]} 31. Rxd8 {[%clk 0:00:59]}  Kxd8 {[%clk 0:01:06]} 32. Qd5+ {[%clk 0:00:59]}  Ke7 {[%clk 0:01:05]} 33. h4 {[%clk 0:00:56]}  Qd6 {[%clk 0:00:57]} 34. Qxb7+ {[%clk 0:00:55]}  Kxe6 {[%clk 0:00:56]} 35. Qc8+ {[%clk 0:00:51]}  Kf7 {[%clk 0:00:50]} 36. Qb7+ {[%clk 0:00:44]}  Qe7 {[%clk 0:00:48]} 37. Qd5+ {[%clk 0:00:43]}  Kg7 {[%clk 0:00:46]} 38. h5 {[%clk 0:00:42]}  gxh5 {[%clk 0:00:44]} 39. Ng3 {[%clk 0:00:40]}  Bxg3 {[%clk 0:00:41]} 40. Kxg3 {[%clk 0:00:40]}  Qg5+ {[%clk 0:00:38]} 41. Kh3 {[%clk 0:00:38]}  Qg4+ {[%clk 0:00:35]} 42. Kh2 {[%clk 0:00:38]}  h4 {[%clk 0:00:33]} 43. Qd7+ {[%clk 0:00:32]}  Kg6 {[%clk 0:00:31]} 44. Qe6+ {[%clk 0:00:27]}  Kg5 {[%clk 0:00:30]} 45. Qg8+ {[%clk 0:00:26]}  Kf4 {[%clk 0:00:29]} 46. Qb8+ {[%clk 0:00:18]}  Kf3 {[%clk 0:00:29]} 47. Qxa7 {[%clk 0:00:16]}  Qg2# {[%clk 0:00:28]} 0-1


[Site "https://www.chess.com"]

[Event "Titled Tuesday Blitz October 31 Early 2023"]
[White "chess123456s"]
[Black "Matveeva, Olga"]
[BlackFideId "24107018"]
[WhiteElo "2526"]
[BlackElo "2419"]
[Result "1-0"]
[Round "11"]
[TimeControl "180+1"]
[Date "2023.10.31"]
[WhiteClock "0:01:14"]
[BlackClock "0:00:55"]
[Board "77"]

1. d4 {[%clk 0:03:00]}  d5 {[%clk 0:02:59]} 2. Nc3 {[%clk 0:03:01]}  Nf6 {[%clk 0:02:57]} 3. Bf4 {[%clk 0:03:01]}  c5 {[%clk 0:02:57]} 4. e4 {[%clk 0:03:02]}  dxe4 {[%clk 0:02:50]} 5. dxc5 {[%clk 0:03:01]}  Bd7 {[%clk 0:02:35]} 6. Bb5 {[%clk 0:02:35]}  Nc6 {[%clk 0:02:26]} 7. Nge2 {[%clk 0:02:30]}  e5 {[%clk 0:02:22]} 8. Bxc6 {[%clk 0:02:30]}  Bxc6 {[%clk 0:02:17]} 9. Qxd8+ {[%clk 0:02:30]}  Rxd8 {[%clk 0:02:16]} 10. Bxe5 {[%clk 0:02:31]}  Bxc5 {[%clk 0:02:14]} 11. O-O {[%clk 0:02:30]}  Ke7 {[%clk 0:02:10]} 12. Ng3 {[%clk 0:02:29]}  e3 {[%clk 0:02:06]} 13. fxe3 {[%clk 0:02:25]}  Bxe3+ {[%clk 0:02:05]} 14. Kh1 {[%clk 0:02:25]}  Rd2 {[%clk 0:02:02]} 15. Bxf6+ {[%clk 0:02:16]}  gxf6 {[%clk 0:02:01]} 16. Nf5+ {[%clk 0:02:16]}  Ke6 {[%clk 0:01:55]} 17. Nxe3 {[%clk 0:02:17]}  Rg8 {[%clk 0:01:53]} 18. Rg1 {[%clk 0:02:09]}  h5 {[%clk 0:01:47]} 19. Rad1 {[%clk 0:02:08]}  Rf2 {[%clk 0:01:45]} 20. Rde1 {[%clk 0:01:53]}  Kd7 {[%clk 0:01:44]} 21. Ref1 {[%clk 0:01:36]}  Rd2 {[%clk 0:01:33]} 22. Rd1 {[%clk 0:01:35]}  Rxd1 {[%clk 0:01:31]} 23. Rxd1+ {[%clk 0:01:35]}  Ke6 {[%clk 0:01:31]} 24. Kg1 {[%clk 0:01:34]}  h4 {[%clk 0:01:30]} 25. Kf2 {[%clk 0:01:34]}  f5 {[%clk 0:01:28]} 26. g3 {[%clk 0:01:32]}  hxg3+ {[%clk 0:01:24]} 27. hxg3 {[%clk 0:01:33]}  Rh8 {[%clk 0:01:23]} 28. Ng2 {[%clk 0:01:32]}  Rh2 {[%clk 0:01:22]} 29. Rg1 {[%clk 0:01:15]}  Ke5 {[%clk 0:01:20]} 30. Ne2 {[%clk 0:01:15]}  Be4 {[%clk 0:01:11]} 31. c3 {[%clk 0:01:14]}  a5 {[%clk 0:01:05]} 32. Nf4 {[%clk 0:01:14]}  a4 {[%clk 0:01:05]} 33. b3 {[%clk 0:01:13]}  axb3 {[%clk 0:01:05]} 34. axb3 {[%clk 0:01:13]}  b5 {[%clk 0:01:04]} 35. Ra1 {[%clk 0:01:14]}  Rh8 {[%clk 0:00:55]} 36. Ra5 {[%clk 0:01:14]} 1-0


[Site "https://www.chess.com"]

[Event "Titled Tuesday Blitz October 31 Early 2023"]
[White "Seresin, Francesco"]
[Black "Baches Garcia, Guillermo"]
[WhiteFideId "886335"]
[BlackFideId "2209764"]
[WhiteElo "2397"]
[BlackElo "2511"]
[Result "1-0"]
[Round "11"]
[TimeControl "180+1"]
[Date "2023.10.31"]
[WhiteClock "0:00:39"]
[BlackClock "0:00:00"]
[Board "78"]

1. d4 {[%clk 0:03:00]}  d5 {[%clk 0:03:00]} 2. c4 {[%clk 0:03:00]}  e6 {[%clk 0:03:01]} 3. Nf3 {[%clk 0:03:00]}  h6 {[%clk 0:02:59]} 4. Nc3 {[%clk 0:02:58]}  Nf6 {[%clk 0:02:59]} 5. Qd3 {[%clk 0:02:52]}  Bd6 {[%clk 0:02:49]} 6. g3 {[%clk 0:02:52]}  Nc6 {[%clk 0:02:44]} 7. Bg2 {[%clk 0:02:51]}  Nb4 {[%clk 0:02:37]} 8. Qd1 {[%clk 0:02:49]}  c5 {[%clk 0:02:29]} 9. a3 {[%clk 0:02:46]}  Nc6 {[%clk 0:02:29]} 10. cxd5 {[%clk 0:02:46]}  exd5 {[%clk 0:02:28]} 11. O-O {[%clk 0:02:45]}  cxd4 {[%clk 0:02:27]} 12. Nxd4 {[%clk 0:02:45]}  O-O {[%clk 0:02:27]} 13. Nxc6 {[%clk 0:02:30]}  bxc6 {[%clk 0:02:27]} 14. e4 {[%clk 0:02:30]}  dxe4 {[%clk 0:02:07]} 15. Nxe4 {[%clk 0:02:28]}  Nxe4 {[%clk 0:02:06]} 16. Bxe4 {[%clk 0:02:28]}  Bh3 {[%clk 0:02:01]} 17. Re1 {[%clk 0:02:27]}  Rc8 {[%clk 0:01:49]} 18. Be3 {[%clk 0:02:24]}  Qf6 {[%clk 0:01:41]} 19. Bd4 {[%clk 0:02:19]}  Qg5 {[%clk 0:01:18]} 20. Be3 {[%clk 0:01:45]}  Qf6 {[%clk 0:01:16]} 21. Bd4 {[%clk 0:01:45]}  Qg5 {[%clk 0:01:16]} 22. Qc1 {[%clk 0:01:44]}  Qa5 {[%clk 0:01:09]} 23. Qc3 {[%clk 0:01:38]}  Qxc3 {[%clk 0:01:06]} 24. Bxc3 {[%clk 0:01:39]}  Rfd8 {[%clk 0:01:02]} 25. Rad1 {[%clk 0:01:38]}  c5 {[%clk 0:00:58]} 26. Rd2 {[%clk 0:01:33]}  Bf8 {[%clk 0:00:50]} 27. Red1 {[%clk 0:01:30]}  Rxd2 {[%clk 0:00:50]} 28. Rxd2 {[%clk 0:01:31]}  Re8 {[%clk 0:00:50]} 29. f3 {[%clk 0:01:29]}  g5 {[%clk 0:00:45]} 30. g4 {[%clk 0:01:23]}  h5 {[%clk 0:00:42]} 31. gxh5 {[%clk 0:01:22]}  g4 {[%clk 0:00:40]} 32. Kf2 {[%clk 0:01:21]}  Bh6 {[%clk 0:00:36]} 33. Re2 {[%clk 0:01:12]}  Rd8 {[%clk 0:00:24]} 34. Kg3 {[%clk 0:01:08]}  gxf3 {[%clk 0:00:23]} 35. Bxf3 {[%clk 0:01:08]}  Be6 {[%clk 0:00:22]} 36. Be4 {[%clk 0:01:03]}  Kf8 {[%clk 0:00:20]} 37. h4 {[%clk 0:00:59]}  Rd1 {[%clk 0:00:20]} 38. Bf6 {[%clk 0:00:56]}  Ke8 {[%clk 0:00:17]} 39. Bg5 {[%clk 0:00:55]}  Bg7 {[%clk 0:00:16]} 40. h6 {[%clk 0:00:56]}  Be5+ {[%clk 0:00:16]} 41. Bf4 {[%clk 0:00:54]}  Bd4 {[%clk 0:00:08]} 42. Bf5 {[%clk 0:00:53]}  Kd7 {[%clk 0:00:06]} 43. Bxe6+ {[%clk 0:00:53]}  fxe6 {[%clk 0:00:07]} 44. Kg4 {[%clk 0:00:51]}  Ke7 {[%clk 0:00:07]} 45. Bg5+ {[%clk 0:00:47]}  Kf7 {[%clk 0:00:07]} 46. Kh5 {[%clk 0:00:42]}  Rg1 {[%clk 0:00:07]} 47. Re4 {[%clk 0:00:41]}  Kg8 {[%clk 0:00:06]} 48. Rxe6 {[%clk 0:00:41]}  Bxb2 {[%clk 0:00:06]} 49. Rc6 {[%clk 0:00:40]}  Bd4 {[%clk 0:00:05]} 50. Rc7 {[%clk 0:00:40]}  Kh8 {[%clk 0:00:00]} 51. Kg6 {[%clk 0:00:39]} 1-0


[Site "https://www.chess.com"]